bitfinex/quotes_BTCUSD_20250624
["timestamp","ask_amount","ask_price","bid_price","bid_amount"]
[1750772245784,0.0001,105240.0,105230.0,2.32093211]
[1750772246663,0.0001,105240.0,105230.0,1.58773046]
[1750772246838,0.0001,105240.0,105230.0,2.19723211]
[1750772247214,0.0001,105240.0,105230.0,1.58741046]
[1750772247432,0.0001,105240.0,105230.0,2.19691211]
[1750772248096,0.0001,105240.0,105230.0,2.19991211]
[1750772248251,0.0001,105240.0,105230.0,2.19691211]
[1750772248453,0.0001,105240.0,105230.0,1.31961046]
[1750772248732,0.0001,105240.0,105230.0,1.58733046]
[1750772249203,0.0001,105240.0,105230.0,2.19683211]
[1750772249769,0.0001,105240.0,105230.0,1.58733046]
[1750772250004,0.0001,105240.0,105230.0,1.24725046]
[1750772250624,0.0001,105240.0,105230.0,1.85675211]
[1750772251346,0.0001,105240.0,105230.0,1.85691211]
[1750772251573,0.0001,105240.0,105230.0,1.24741046]
[1750772251812,0.0001,105240.0,105230.0,1.04761046]
[1750772252045,0.0001,105240.0,105230.0,1.47529046]
[1750772252265,0.0001,105240.0,105230.0,0.97961046]
[1750772252678,0.0244,105240.0,105230.0,1.47509046]
[1750772252886,0.0485,105240.0,105230.0,1.47509046]
[1750772253088,0.0485,105240.0,105230.0,1.62509046]
[1750772253311,0.0001,105240.0,105230.0,1.62509046]
[1750772254239,0.0001,105240.0,105230.0,2.23459211]
[1750772254706,0.0001,105240.0,105230.0,2.06519046]
[1750772254946,0.0021,105250.0,105240.0,0.55628782]
[1750772255173,0.0011,105270.0,105260.0,0.2732]
[1750772255428,0.00123832,105270.0,105260.0,1.22560711]
[1750772255656,0.00123832,105270.0,105260.0,1.29014796]
[1750772256115,0.00123832,105270.0,105260.0,0.63064631]
[1750772256359,0.00123832,105270.0,105260.0,1.41400019]
[1750772257073,0.00123832,105270.0,105260.0,1.36500019]
[1750772257307,0.00123832,105270.0,105260.0,1.41500019]
[1750772257531,0.00123832,105270.0,105260.0,1.43306419]
[1750772257761,0.00123832,105270.0,105260.0,1.64298419]
[1750772258196,0.00123832,105270.0,105260.0,1.59298419]
[1750772258418,0.00123832,105270.0,105260.0,1.79298419]
[1750772259412,0.00123832,105270.0,105260.0,1.76858419]
[1750772259583,0.00123832,105270.0,105260.0,2.46858419]
[1750772260026,0.00123832,105270.0,105260.0,2.49278419]
[1750772260703,0.0001,105280.0,105270.0,1.72902721]
[1750772260945,0.0001,105280.0,105270.0,1.92452907]
[1750772261893,0.01564739,105290.0,105280.0,0.21846394]
[1750772262137,0.002,105310.0,105300.0,1.2568633]
[1750772262351,0.00246098,105310.0,105300.0,2.50286681]
[1750772262581,0.00246098,105310.0,105300.0,1.89336516]
[1750772262786,0.00246098,105310.0,105300.0,2.50286681]
[1750772263452,0.00246098,105310.0,105300.0,2.50386681]
[1750772263874,0.00246098,105310.0,105300.0,1.55742516]
[1750772264099,0.02766098,105310.0,105300.0,1.43404431]
[1750772264593,0.05266098,105310.0,105300.0,1.43404431]
[1750772265022,0.05266098,105310.0,105300.0,1.43504431]
[1750772265261,0.05266098,105310.0,105300.0,1.44958516]
[1750772265505,0.05266098,105310.0,105300.0,1.45058516]
[1750772265753,0.05266098,105310.0,105300.0,1.44758516]
[1750772265962,0.05566098,105310.0,105300.0,1.44758516]
[1750772266222,0.05566098,105310.0,105300.0,0.39550186]
[1750772266465,1.21506902,105310.0,105300.0,0.1]
[1750772266674,0.3494964,105300.0,105290.0,0.42246625]
[1750772266897,0.46345126,105300.0,105290.0,0.52746514]
[1750772267110,0.64388892,105300.0,105290.0,0.51796811]
[1750772267320,0.67109288,105300.0,105290.0,0.5179682]
[1750772267528,0.66159621,105300.0,105290.0,0.52746532]
[1750772267759,0.4811958,105300.0,105290.0,0.53696226]
[1750772267965,0.391926,105300.0,105290.0,0.68696226]
[1750772268170,0.3634,105300.0,105290.0,0.68696226]
[1750772268376,0.60522245,105300.0,105290.0,0.2949509]
[1750772268579,0.59572641,105300.0,105290.0,0.38850186]
[1750772268789,0.0505,105280.0,105270.0,0.28694614]
[1750772269002,0.07899379,105280.0,105270.0,0.71640577]
[1750772269206,0.0884919,105280.0,105270.0,0.71640577]
[1750772269409,0.0884919,105280.0,105270.0,0.61684577]
[1750772269616,0.07899361,105280.0,105270.0,0.61684577]
[1750772269838,0.06949559,105280.0,105270.0,0.61684577]
[1750772270047,0.0789937,105280.0,105270.0,0.61684577]
[1750772270252,0.28795998,105280.0,105270.0,0.40144577]
[1750772270458,0.07899433,105280.0,105270.0,0.61684577]
[1750772270670,0.06949604,105280.0,105270.0,0.61684577]
[1750772270876,0.0505,105280.0,105270.0,0.61684577]
[1750772271088,0.08546667,105310.0,105300.0,0.20892641]
[1750772271269,0.09967117,105310.0,105300.0,0.52916431]
[1750772271711,0.30857774,105310.0,105300.0,0.51966827]
[1750772271921,0.30857774,105310.0,105300.0,0.52916458]
[1750772272099,0.29908278,105310.0,105300.0,0.21524]
[1750772272384,0.03379703,105290.0,105280.0,0.2184633]
[1750772272588,0.07649163,105290.0,105280.0,0.6070057]
[1750772272809,0.05749676,105290.0,105280.0,0.6070057]
[1750772273021,0.07649073,105290.0,105280.0,0.6070057]
[1750772273226,0.0243,105290.0,105280.0,0.6070057]
[1750772273633,0.03379676,105290.0,105280.0,0.6070057]
[1750772274082,0.0243,105290.0,105280.0,0.6070057]
[1750772274551,0.06527612,105310.0,105300.0,0.22791876]
[1750772274759,0.07477171,105310.0,105300.0,0.44255876]
[1750772274894,0.09847171,105310.0,105300.0,0.44255876]
[1750772275096,0.10796712,105310.0,105300.0,0.44255876]
[1750772275296,0.30737837,105310.0,105300.0,0.42356659]
[1750772275664,0.08897612,105310.0,105300.0,0.5380608]
[1750772275869,0.06517612,105310.0,105300.0,0.5620608]
[1750772276280,0.39568098,105310.0,105300.0,0.5620608]
[1750772276703,0.41467117,105310.0,105300.0,0.5620608]
[1750772276878,0.43366226,105310.0,105300.0,0.7120608]
[1750772277112,0.45806226,105310.0,105300.0,0.7120608]
[1750772277321,0.44856667,105310.0,105300.0,0.6970608]
[1750772277527,0.44856658,105310.0,105300.0,0.7050608]
[1750772277945,0.43907117,105310.0,105300.0,0.7150608]
[1750772278147,0.44856667,105310.0,105300.0,0.7150608]
[1750772278387,0.45806226,105310.0,105300.0,0.7150608]
[1750772278613,0.65747351,105310.0,105300.0,0.70556476]
[1750772278828,1.23848947,105310.0,105300.0,0.68657205]
[1750772279033,1.22899388,105310.0,105300.0,0.24164]
[1750772279461,1.20047388,105310.0,105300.0,0.24164]
[1750772279676,0.59097223,105310.0,105300.0,0.45056659]
[1750772279884,0.60996296,105310.0,105300.0,0.45056659]
[1750772280311,0.61949623,105310.0,105300.0,0.027]
[1750772280515,1.22899788,105310.0,105300.0,0.24092]
[1750772280720,1.22899788,105310.0,105300.0,0.027]
[1750772280927,1.22899788,105310.0,105300.0,0.0015]
[1750772282819,0.58226421,105280.0,105270.0,0.69072505]
[1750772283031,0.58226421,105280.0,105270.0,0.7957262]
[1750772283241,0.37329766,105280.0,105270.0,0.82422308]
[1750772283454,0.36849361,105280.0,105270.0,0.82422308]
[1750772283632,0.34,105280.0,105270.0,0.82422308]
[1750772283870,0.34949775,105280.0,105270.0,0.82422308]
[1750772284112,0.34,105280.0,105270.0,0.82422308]
[1750772284348,0.002,105280.0,105270.0,0.82422308]
[1750772284620,0.00949613,105300.0,105290.0,0.21844319]
[1750772284854,0.2279184,105300.0,105290.0,0.51740811]
[1750772285079,0.02848839,105300.0,105290.0,0.52690505]
[1750772285512,0.00949586,105300.0,105290.0,0.52690442]
[1750772285919,0.03798479,105300.0,105290.0,0.52690442]
[1750772286399,0.03998479,105300.0,105290.0,0.51740757]
[1750772286619,0.03048893,105300.0,105290.0,0.52690505]
[1750772286847,0.03048884,105300.0,105290.0,0.52690505]
[1750772287078,0.02099226,105300.0,105290.0,0.52690505]
[1750772287308,0.002,105300.0,105290.0,0.72690505]
[1750772287527,0.01149586,105300.0,105290.0,0.72690505]
[1750772287751,0.37048794,105300.0,105290.0,0.72690505]
[1750772288021,0.01149595,105300.0,105290.0,0.72690505]
[1750772288237,0.002,105300.0,105290.0,0.72690505]
[1750772288462,0.01149595,105300.0,105290.0,0.72690505]
[1750772288684,0.01149586,105300.0,105290.0,0.72690505]
[1750772288913,0.0209919,105300.0,105290.0,0.72690505]
[1750772289138,0.00949586,105300.0,105290.0,0.72690505]
[1750772289331,0.90765259,105310.0,105300.0,0.22791876]
[1750772289583,0.91714719,105310.0,105300.0,0.32342062]
[1750772289834,0.40996644,105310.0,105300.0,0.32342062]
[1750772290075,0.03198498,105310.0,105300.0,0.47342062]
[1750772290524,0.00546098,105310.0,105300.0,0.47342062]
[1750772291474,0.00546098,105310.0,105300.0,0.57342062]
[1750772291685,0.90011887,105310.0,105300.0,0.60432467]
[1750772291916,1.09003426,105310.0,105300.0,0.6138208]
[1750772292165,0.90011878,105310.0,105300.0,0.62331684]
[1750772292393,0.37194676,105310.0,105300.0,0.62331684]
[1750772292613,0.38144235,105310.0,105300.0,0.62331684]
[1750772292844,0.38394658,105310.0,105300.0,0.62431684]
[1750772293093,0.35295603,105310.0,105300.0,0.62331684]
[1750772293366,0.34346098,105310.0,105300.0,0.62331684]
[1750772293603,0.35746098,105310.0,105300.0,0.62431684]
[1750772294063,0.01746098,105310.0,105300.0,0.82411684]
[1750772298021,0.01746098,105310.0,105300.0,0.79891684]
[1750772299161,0.01746098,105310.0,105300.0,0.77431684]
[1750772299413,0.23586269,105310.0,105300.0,0.28643538]
[1750772299647,0.46191665,105310.0,105300.0,0.50794245]
[1750772299880,0.59485378,105310.0,105300.0,0.4889901]
[1750772300112,0.68274203,105310.0,105300.0,0.07852]
[1750772300346,0.77821198,105310.0,105300.0,0.001]
[1750772300596,1.38661141,105310.0,105300.0,0.001]
[1750772300834,1.38664332,105310.0,105300.0,0.001]
[1750772301701,1.31067352,105310.0,105300.0,0.001]
[1750772302577,1.31067352,105310.0,105300.0,0.008]
[1750772303234,1.40781115,105310.0,105300.0,0.008]
[1750772304096,1.40781115,105310.0,105300.0,0.001]
[1750772304309,1.39731538,105310.0,105270.0,0.28650588]
[1750772304524,0.55846366,105280.0,105270.0,0.27700677]
[1750772304733,0.56796205,105280.0,105270.0,0.29600472]
[1750772304978,0.57746035,105280.0,105270.0,0.29600472]
[1750772305198,0.38752813,105280.0,105270.0,0.2479628]
[1750772305406,0.38752777,105280.0,105270.0,0.25746155]
[1750772305621,0.368532,105280.0,105270.0,0.55296341]
[1750772305842,0.34,105280.0,105270.0,0.55296341]
[1750772306056,0.35899568,105280.0,105270.0,0.55296341]
[1750772306262,0.34,105280.0,105270.0,0.55296341]
[1750772307312,0.34949766,105280.0,105270.0,0.55296341]
[1750772307516,0.36849343,105280.0,105270.0,0.55296341]
[1750772307719,0.36849334,105280.0,105270.0,0.55296341]
[1750772307925,0.34,105280.0,105270.0,0.55296341]
[1750772308131,0.34949775,105280.0,105270.0,0.55296341]
[1750772308345,0.34,105280.0,105270.0,0.55296341]
[1750772308570,0.34,105280.0,105270.0,0.75436341]
[1750772309010,0.3875189,105300.0,105290.0,0.21844319]
[1750772309224,0.3875189,105300.0,105290.0,0.42872319]
[1750772309437,0.02145171,105310.0,105300.0,0.21842245]
[1750772309646,0.04997335,105310.0,105300.0,0.31392431]
[1750772309864,0.59887992,105310.0,105300.0,0.3139244]
[1750772310125,0.01899244,105300.0,105290.0,0.76922535]
[1750772310336,0.03798524,105300.0,105290.0,0.65444721]
[1750772310545,0.23841534,105300.0,105290.0,0.94732757]
[1750772310755,0.0294892,105300.0,105290.0,0.94732757]
[1750772310968,0.01999271,105300.0,105290.0,0.94732757]
[1750772311181,0.01049604,105300.0,105290.0,0.94732757]
[1750772311397,0.001,105300.0,105290.0,0.94732757]
[1750772311603,0.001,105300.0,105290.0,0.99752757]
[1750772313074,0.001,105300.0,105290.0,0.68364757]
[1750772313279,0.06896444,105310.0,105300.0,0.22791876]
[1750772313465,0.06896444,105310.0,105300.0,0.32342062]
[1750772313699,0.25888055,105310.0,105300.0,0.31392485]
[1750772313909,0.25888055,105310.0,105300.0,0.32342107]
[1750772314121,0.25888055,105310.0,105300.0,0.30442854]
[1750772314324,0.00949631,105300.0,105290.0,0.40894526]
[1750772314528,0.34949613,105300.0,105290.0,0.79838433]
[1750772314738,0.34,105300.0,105290.0,0.79838433]
[1750772314952,0.34,105300.0,105290.0,0.82268433]
[1750772315159,0.34,105300.0,105290.0,0.84818433]
[1750772315571,0.001,105300.0,105290.0,0.85318433]
[1750772315797,0.001,105300.0,105290.0,1.00318433]
[1750772318571,0.001,105300.0,105290.0,1.53421804]
[1750772318991,0.001,105300.0,105290.0,1.63421804]
[1750772319404,0.001,105300.0,105290.0,1.63353804]
[1750772319830,0.001,105300.0,105290.0,1.11704518]
[1750772320044,0.001,105300.0,105290.0,1.63353804]
[1750772320288,0.00246098,105310.0,105300.0,0.26862245]
[1750772320502,0.00246098,105310.0,105300.0,0.59208431]
[1750772321157,0.00246098,105310.0,105300.0,1.10857717]
[1750772321374,0.00246098,105310.0,105300.0,2.28961088]
[1750772321586,0.01246098,105310.0,105300.0,2.73061088]
[1750772321827,0.002,105330.0,105320.0,1.18362183]
[1750772322051,0.00213826,105330.0,105320.0,1.58700369]
[1750772322260,0.00213826,105330.0,105320.0,2.10349655]
[1750772323969,0.00213826,105330.0,105320.0,2.10449655]
[1750772324173,0.00213826,105330.0,105320.0,2.17941655]
[1750772324591,0.00613826,105330.0,105320.0,2.17941655]
[1750772325024,0.00613826,105330.0,105320.0,1.38012369]
[1750772325274,0.00613826,105330.0,105320.0,1.66240369]
[1750772325713,0.00613826,105330.0,105320.0,2.17889655]
[1750772326146,0.00613826,105330.0,105320.0,1.66240369]
[1750772326359,0.00613826,105330.0,105320.0,1.22086284]
[1750772326590,0.00713826,105330.0,105320.0,1.22086284]
[1750772326795,0.00713826,105330.0,105320.0,1.24636284]
[1750772327007,0.00313826,105330.0,105320.0,1.24636284]
[1750772327436,0.00613826,105330.0,105320.0,1.24636284]
[1750772327862,0.00213826,105330.0,105320.0,1.24636284]
[1750772328068,0.00213826,105330.0,105320.0,1.03932284]
[1750772328274,0.00813826,105330.0,105320.0,1.26050369]
[1750772328484,0.00813826,105330.0,105320.0,1.77699655]
[1750772330160,0.00813826,105330.0,105320.0,1.77899655]
[1750772331434,0.00813826,105330.0,105320.0,1.92899655]
[1750772332062,0.00813826,105330.0,105320.0,1.41250369]
[1750772332267,0.00813826,105330.0,105320.0,1.92899655]
[1750772335045,0.00813826,105330.0,105320.0,1.51250369]
[1750772336459,0.00813826,105330.0,105320.0,1.14376284]
[1750772336664,0.00813826,105330.0,105320.0,1.42140284]
[1750772337286,0.00813826,105330.0,105320.0,1.14376284]
[1750772337494,0.00813826,105330.0,105320.0,1.42116284]
[1750772337962,0.00813826,105330.0,105320.0,1.44736284]
[1750772338495,0.00813826,105330.0,105320.0,1.26864284]
[1750772338700,0.00813826,105330.0,105320.0,1.44720284]
[1750772338909,0.00813826,105330.0,105320.0,1.42100284]
[1750772340672,0.21700427,105330.0,105320.0,1.03835931]
[1750772340882,0.98518769,105330.0,105320.0,0.91114878]
[1750772341029,0.60159194,105330.0,105320.0,0.81114878]
[1750772341235,0.59209869,105330.0,105320.0,0.83013762]
[1750772341504,0.36712494,105330.0,105320.0,1.03967186]
[1750772341711,0.34813826,105330.0,105320.0,1.03967186]
[1750772341914,0.34813826,105330.0,105320.0,1.18767186]
[1750772342117,0.34813826,105330.0,105320.0,1.19367186]
[1750772342528,0.34213826,105330.0,105320.0,1.19367186]
[1750772343015,0.36112521,105330.0,105320.0,1.19067186]
[1750772343236,0.35663151,105330.0,105320.0,1.19067186]
[1750772343444,0.34713826,105330.0,105320.0,1.18767186]
[1750772344057,0.34713826,105330.0,105320.0,1.18707186]
[1750772344475,0.35113826,105330.0,105320.0,1.18707186]
[1750772347393,0.35113826,105330.0,105320.0,1.03707186]
[1750772347589,0.35113826,105330.0,105320.0,1.03439186]
[1750772348090,0.37523826,105330.0,105320.0,1.03439186]
[1750772348298,0.35113826,105330.0,105320.0,1.03439186]
[1750772348918,0.3606316,105330.0,105320.0,1.03439186]
[1750772349137,1.14628489,105330.0,105320.0,0.42788]
[1750772349362,1.12729803,105330.0,105320.0,0.22788]
[1750772349577,1.136792,105330.0,105320.0,0.43676674]
[1750772349794,0.37012521,105330.0,105320.0,0.56075204]
[1750772350002,0.37961873,105330.0,105320.0,0.56075204]
[1750772350232,0.37461864,105330.0,105320.0,0.56075204]
[1750772350470,0.37461864,105330.0,105320.0,0.54776347]
[1750772350471,0.56999239,105330.0,105320.0,0.54776347]
[1750772350683,1.09319821,105330.0,105320.0,0.51327931]
[1750772350893,1.09319821,105330.0,105320.0,0.5322686]
[1750772351091,1.09319821,105330.0,105320.0,0.54176311]
[1750772351291,0.90331843,105330.0,105320.0,0.55125735]
[1750772351494,0.37061846,105330.0,105320.0,0.75125735]
[1750772351699,0.38011207,105330.0,105320.0,0.75125735]
[1750772351905,0.37061837,105330.0,105320.0,0.75525735]
[1750772352112,0.36212485,105330.0,105320.0,0.76425735]
[1750772352318,0.38111198,105330.0,105320.0,0.76025735]
[1750772352519,0.37261828,105330.0,105320.0,0.76625735]
[1750772352723,0.36312485,105330.0,105320.0,0.76625735]
[1750772353120,0.39160559,105330.0,105320.0,0.76625735]
[1750772353350,0.3821118,105330.0,105320.0,0.76625735]
[1750772353555,0.00413826,105330.0,105320.0,0.76625735]
[1750772353726,0.35363142,105330.0,105320.0,0.76625735]
[1750772353938,0.34413826,105330.0,105320.0,0.76625735]
[1750772354300,0.35363142,105330.0,105320.0,0.76625735]
[1750772354507,0.34413826,105330.0,105320.0,0.76625735]
[1750772354921,0.35363151,105330.0,105320.0,0.76625735]
[1750772355275,0.36312494,105330.0,105320.0,0.76625735]
[1750772355413,0.34413826,105330.0,105320.0,0.76625735]
[1750772355656,0.35363142,105330.0,105320.0,0.76625735]
[1750772355859,0.36312476,105330.0,105320.0,0.76625735]
[1750772356218,0.35363142,105330.0,105320.0,0.76625735]
[1750772356347,0.34413826,105330.0,105320.0,0.76625735]
[1750772356965,0.35363142,105330.0,105320.0,0.76625735]
[1750772357288,0.34413826,105330.0,105320.0,0.76625735]
[1750772357490,0.34413826,105330.0,105320.0,0.81515735]
[1750772357694,0.35363151,105330.0,105320.0,0.76625735]
[1750772357897,0.35363142,105330.0,105320.0,0.76625735]
[1750772358099,0.34413826,105330.0,105320.0,0.76625735]
[1750772358542,0.35363151,105330.0,105320.0,0.76625735]
[1750772358912,0.34413826,105330.0,105320.0,0.76625735]
[1750772359153,0.3536316,105330.0,105320.0,0.76625735]
[1750772359633,0.36312521,105330.0,105320.0,0.76625735]
[1750772359837,0.36312521,105330.0,105320.0,0.43277745]
[1750772359838,1.09369794,105330.0,105320.0,0.43277745]
[1750772360089,1.10820433,105330.0,105320.0,0.71075232]
[1750772360258,1.10820433,105330.0,105320.0,0.72974161]
[1750772360471,0.36312557,105330.0,105320.0,0.84423204]
[1750772360672,0.55300499,105330.0,105320.0,0.84423204]
[1750772360881,0.56249824,105330.0,105320.0,0.82524347]
[1750772361092,0.56249824,105330.0,105320.0,0.8347378]
[1750772361288,0.37261882,105330.0,105320.0,0.84423204]
[1750772361487,0.57199212,105330.0,105320.0,0.84423204]
[1750772361693,0.57199284,105330.0,105320.0,0.82524347]
[1750772361908,0.38772557,105330.0,105320.0,0.83473789]
[1750772362049,0.37261873,105330.0,105320.0,0.84423213]
[1750772362251,0.38211252,105330.0,105320.0,0.84423213]
[1750772362647,0.3916064,105330.0,105320.0,0.84423213]
[1750772362791,1.11959839,105330.0,105320.0,0.70057745]
[1750772363001,1.11959839,105330.0,105320.0,0.71007232]
[1750772363206,1.11959839,105330.0,105320.0,0.51068]
[1750772363405,1.11959839,105330.0,105320.0,0.71007223]
[1750772363767,1.11010451,105330.0,105320.0,0.51068]
[1750772364152,1.11010451,105330.0,105320.0,0.71007223]
[1750772364724,1.11010451,105330.0,105320.0,0.72906152]
[1750772365719,0.37261882,105330.0,105320.0,0.74805027]
[1750772366089,0.57199212,105330.0,105320.0,0.47075603]
[1750772366231,0.57199212,105330.0,105320.0,0.74741045]
[1750772366880,0.36312503,105330.0,105320.0,0.74740991]
[1750772367056,0.35363151,105330.0,105320.0,0.94740991]
[1750772367237,0.37261855,105330.0,105320.0,0.94740991]
[1750772367683,0.38211234,105330.0,105320.0,0.94740991]
[1750772368261,0.39160622,105330.0,105320.0,0.94740991]
[1750772368461,0.37261855,105330.0,105320.0,0.94740991]
[1750772368668,0.57199185,105330.0,105320.0,0.30206116]
[1750772368865,0.59649185,105330.0,105320.0,0.29256674]
[1750772369070,1.10349146,105330.0,105320.0,0.28307214]
[1750772369317,1.10349146,105330.0,105320.0,0.29256674]
[1750772369631,0.90411816,105330.0,105320.0,0.52032982]
[1750772370064,0.87961771,105330.0,105320.0,0.52032982]
[1750772370736,0.34413826,105330.0,105320.0,0.81583168]
[1750772370940,0.36312485,105330.0,105320.0,0.81583168]
[1750772371115,0.36312467,105330.0,105320.0,0.81583168]
[1750772371313,0.0136316,105330.0,105320.0,0.81583168]
[1750772371522,0.01363151,105330.0,105320.0,0.81583168]
[1750772371746,0.00413826,105330.0,105320.0,0.81583168]
[1750772371958,0.00413826,105330.0,105320.0,1.01843168]
[1750772372571,0.73899119,105330.0,105320.0,0.48159223]
[1750772372926,0.74848516,105330.0,105320.0,0.50058134]
[1750772373340,0.03261882,105330.0,105320.0,0.51007558]
[1750772373829,0.00413826,105330.0,105320.0,0.85647744]
[1750772375872,0.00413826,105330.0,105320.0,1.00647744]
[1750772377159,0.00413826,105330.0,105320.0,1.15647744]
[1750772378037,0.00413826,105330.0,105320.0,1.78851115]
[1750772378908,0.00313826,105330.0,105320.0,1.78251115]
[1750772379358,0.00513826,105330.0,105320.0,1.77351115]
[1750772379979,0.00213826,105330.0,105320.0,1.77351115]
[1750772380121,0.00313826,105330.0,105320.0,1.57499115]
[1750772380326,0.00313826,105330.0,105320.0,1.25633829]
[1750772381556,0.00913826,105330.0,105320.0,1.25633829]
[1750772381811,0.00913826,105330.0,105320.0,1.77283115]
[1750772384796,0.00913826,105330.0,105320.0,1.7821654]
[1750772385631,0.00913826,105330.0,105320.0,1.26567254]
[1750772385849,0.00913826,105330.0,105320.0,1.50631115]
[1750772386073,0.00913826,105330.0,105320.0,0.97527744]
[1750772386275,0.03761882,105330.0,105320.0,1.09610878]
[1750772386446,0.02812503,105330.0,105320.0,1.01509753]
[1750772386649,0.01863151,105330.0,105320.0,1.01509753]
[1750772386848,0.02812485,105330.0,105320.0,1.01509753]
[1750772387271,0.02712485,105330.0,105320.0,1.01509753]
[1750772387683,0.02712476,105330.0,105320.0,1.01509753]
[1750772387884,0.02112476,105330.0,105320.0,1.01509753]
[1750772388360,0.59289221,105330.0,105320.0,0.51488329]
[1750772388532,1.09639821,105330.0,105320.0,0.76786878]
[1750772388735,0.58390535,105330.0,105320.0,0.77736338]
[1750772388917,0.58390535,105330.0,105320.0,0.76786878]
[1750772389115,0.58390535,105330.0,105320.0,0.78685771]
[1750772389315,0.57390535,105330.0,105320.0,0.76786878]
[1750772389516,0.56441165,105330.0,105320.0,0.55495931]
[1750772389722,0.59061165,105330.0,105320.0,0.2762]
[1750772389949,0.59061165,105330.0,105320.0,0.46609745]
[1750772390209,0.59061165,105330.0,105320.0,0.47559232]
[1750772390405,0.60963568,105330.0,105320.0,0.2762]
[1750772390728,0.60963568,105330.0,105320.0,0.46609745]
[1750772390932,0.60963568,105330.0,105320.0,0.2762]
[1750772391938,0.60963568,105330.0,105320.0,0.08056]
[1750772392165,1.12612854,105330.0,105320.0,0.27556]
[1750772392720,1.12612854,105330.0,105320.0,0.27548]
[1750772393159,1.12612854,105330.0,105320.0,0.014]
[1750772394014,1.12512854,105330.0,105320.0,0.003]
[1750772394255,1.18966939,105330.0,105320.0,0.003]
[1750772394483,1.48157125,105330.0,105320.0,0.021]
[1750772394705,1.50426928,105330.0,105320.0,0.019]
[1750772394909,1.50526928,105330.0,105320.0,0.028]
[1750772395134,1.50526928,105330.0,105320.0,0.01]
[1750772395135,1.50426928,105330.0,105320.0,0.01]
[1750772395362,1.50326928,105330.0,105320.0,0.001]
[1750772395579,1.48157125,105330.0,105320.0,0.017]
[1750772395825,1.50525861,105330.0,105320.0,0.025]
[1750772396025,0.59552623,105300.0,105290.0,0.06005829]
[1750772396236,1.30589909,105300.0,105290.0,0.06005829]
[1750772396751,1.08941909,105300.0,105290.0,0.06005829]
[1750772397421,1.0985186,105300.0,105290.0,0.06005829]
[1750772397795,1.1211186,105300.0,105290.0,0.06005829]
[1750772398156,1.1221186,105300.0,105290.0,0.06905829]
[1750772398496,1.3158386,105300.0,105290.0,0.06905829]
[1750772398677,1.3148386,105300.0,105290.0,0.06005829]
[1750772398881,1.3148386,105300.0,105290.0,0.08005829]
[1750772399104,1.3148386,105300.0,105290.0,0.08805829]
[1750772399105,1.3178386,105300.0,105290.0,0.08805829]
[1750772399465,0.35249586,105300.0,105290.0,0.55144244]
[1750772399674,0.37097575,105300.0,105290.0,0.55144244]
[1750772400097,0.03097575,105300.0,105290.0,0.55144244]
[1750772400508,0.001,105300.0,105290.0,0.57804244]
[1750772400953,0.003,105300.0,105290.0,0.58804244]
[1750772401162,0.002,105300.0,105290.0,0.58004244]
[1750772401343,0.36848596,105310.0,105300.0,0.36842245]
[1750772401578,1.0748943,105310.0,105300.0,0.57164431]
[1750772401778,1.0748943,105310.0,105300.0,0.47614254]
[1750772401952,1.08439007,105310.0,105300.0,0.47614254]
[1750772402161,0.34949505,105310.0,105300.0,0.48563858]
[1750772402359,0.34949505,105310.0,105300.0,0.58114044]
[1750772402576,0.36848596,105310.0,105300.0,0.58114044]
[1750772402918,0.56789712,105310.0,105300.0,0.5716444]
[1750772403134,0.36848596,105310.0,105300.0,0.58082044]
[1750772403540,0.56789712,105310.0,105300.0,0.56162827]
[1750772403750,0.01899217,105300.0,105290.0,0.41844301]
[1750772403955,1.12170845,105310.0,105300.0,0.20892659]
[1750772404153,0.60521559,105310.0,105300.0,0.20892659]
[1750772404385,0.61021559,105310.0,105300.0,0.20892659]
[1750772404602,0.59172027,105310.0,105300.0,0.20892659]
[1750772404836,0.00949613,105300.0,105290.0,0.77114433]
[1750772405043,0.004,105300.0,105290.0,0.79604433]
[1750772405246,0.40180362,105310.0,105300.0,0.21842245]
[1750772405378,0.39230812,105310.0,105300.0,0.31392431]
[1750772405584,0.40180362,105310.0,105300.0,0.31392431]
[1750772405791,0.40629921,105310.0,105300.0,0.31392431]
[1750772405996,0.40629975,105310.0,105300.0,0.31392449]
[1750772406348,0.40629975,105310.0,105300.0,0.32342053]
[1750772406349,0.39680407,105310.0,105300.0,0.32342053]
[1750772406554,0.38730794,105310.0,105300.0,0.32342053]
[1750772406850,0.36831775,105310.0,105300.0,0.34612053]
[1750772407047,0.34,105320.0,105310.0,0.41840171]
[1750772407290,0.3684829,105320.0,105310.0,0.85582357]
[1750772407491,0.34949406,105320.0,105310.0,0.85582357]
[1750772407693,0.35898839,105320.0,105310.0,0.85582357]
[1750772407828,0.40637226,105320.0,105310.0,0.85582357]
[1750772408034,0.5867761,105320.0,105310.0,0.65440861]
[1750772408215,0.57728168,105320.0,105310.0,0.92230393]
[1750772408432,0.38738333,105320.0,105310.0,0.93179907]
[1750772408638,0.39687793,105320.0,105310.0,0.93179907]
[1750772408837,0.59627007,105320.0,105310.0,0.90331302]
[1750772409041,1.09377436,105320.0,105310.0,0.65781125]
[1750772409422,1.08427976,105320.0,105310.0,0.2584]
[1750772409650,1.10887976,105320.0,105310.0,0.002]
[1750772409856,1.13187976,105320.0,105310.0,0.002]
[1750772410266,0.6153869,105320.0,105310.0,0.002]
[1750772410414,1.13187976,105320.0,105310.0,0.002]
[1750772410626,1.13187976,105320.0,105310.0,0.007]
[1750772411085,1.37730038,105320.0,105310.0,0.007]
[1750772412338,0.78483772,105320.0,105310.0,0.007]
[1750772412540,1.30133058,105320.0,105310.0,0.007]
[1750772412692,1.30133058,105320.0,105310.0,0.002]
[1750772412902,0.56794022,105290.0,105280.0,0.27544462]
[1750772413105,0.55844346,105290.0,105280.0,0.27544462]
[1750772413331,0.55844346,105290.0,105280.0,0.28494273]
[1750772413551,0.55844346,105290.0,105280.0,0.29444075]
[1750772413708,0.55844346,105290.0,105280.0,0.28494273]
[1750772413914,0.55844346,105290.0,105280.0,0.22996066]
[1750772414138,0.34949676,105290.0,105280.0,0.40490134]
[1750772414348,0.34949676,105290.0,105280.0,0.60610134]
[1750772414587,0.34,105290.0,105280.0,0.60610134]
[1750772416671,0.34,105290.0,105280.0,0.75610134]
[1750772417560,0.05701033,105310.0,105300.0,0.21842245]
[1750772417761,0.06650574,105310.0,105300.0,0.40906245]
[1750772417955,0.07600124,105310.0,105300.0,0.40906245]
[1750772418161,0.41600187,105310.0,105300.0,0.40906245]
[1750772418624,0.39701078,105310.0,105300.0,0.50456431]
[1750772418913,0.35899037,105310.0,105300.0,0.50456431]
[1750772419143,0.34,105310.0,105300.0,0.50456431]
[1750772419356,0.34,105310.0,105300.0,0.65456431]
[1750772419557,0.341,105310.0,105300.0,0.70296431]
[1750772420171,0.341,105310.0,105300.0,0.70396431]
[1750772420520,0.34,105310.0,105300.0,0.70396431]
[1750772420828,0.34949496,105310.0,105300.0,0.70296431]